Workbook

Sheet SMSF
B1: SMSF Servicability Calculator
C2: Version v2 - Effective 16th October 2023
C4: SMSF Name
C6: Proposed Loan Details
C8: New Loan Amount | K8: Interest Rate | S8: Interest expense annually
K9: Loan Term (Years)
K10: I/O Term (Years)
K11: P&I Repayment | M11: =IF(LoanTermInYears>IOTermInYears,-PMT((MAX(BaselineAssessmentRate,InterestRate+AssessmentLoading))/NumberOfMonthsInAYear,NumberOfMonthsInAYear*(LoanTermInYears-IOTermInYears),NewLoanAmount),0) -> 0 | S11: =E8*((MAX(BaselineAssessmentRate,InterestRate+AssessmentLoading))) -> 0
K12: IO Repayment | M12: =IF(IOTermInYears>0,NewLoanAmount*(((MAX(BaselineAssessmentRate,InterestRate+AssessmentLoading)))/NumberOfMonthsInAYear),0) -> 0
C15: Members Contributions
C17: Member Details | E17: Member 1 | G17: Member 2 | I17: Member 3 | K17: Member 4 | M17: Member 5 | O17: Member 6 | S17: Total
C19: Superannuation guarantee | S19: =(E19+G19+I19+K19+M19+O19) -> 0
C20: =IF(OR(AND(PAYGIncomeM1=0,(SuperGuaranteeContributionM1+ProposedConcessionalContributionsM1+E22)>ConcessionalContributionsCappedAmount),AND((SuperGuaranteeContributionM2+ProposedConcessionalContributionsM2+G22)>ConcessionalContributionsCappedAmount),AND((SuperGuaranteeContributionM3+ProposedConcessionalContributionsM3+I22)>ConcessionalContributionsCappedAmount),AND((SuperGuaranteeContributionM4+ProposedConcessionalContributionsM4+K22)>ConcessionalContributionsCappedAmount),AND((SuperGuaranteeContributionM5+ProposedConcessionalContributionsM5+M22)>ConcessionalContributionsCappedAmount),AND((SuperGuaranteeContributionM6+ProposedConcessionalContributionsM6+O22)>ConcessionalContributionsCappedAmount)),"Concessional cap of " & TEXT(ConcessionalContributionsCappedAmount,"$00,000") & " has been exceeded","") ->  | E20: =IF(OR(AND(PAYGIncomeM1>0,SuperGuaranteeContributionM1>(PAYGIncomeM1*CompulsarySuperannuationPercentage)),AND(PAYGIncomeM2>0,SuperGuaranteeContributionM2>(PAYGIncomeM2*CompulsarySuperannuationPercentage)),AND(PAYGIncomeM3>0,SuperGuaranteeContributionM3>(PAYGIncomeM3*CompulsarySuperannuationPercentage)),AND(PAYGIncomeM4>0,SuperGuaranteeContributionM4>(PAYGIncomeM4*CompulsarySuperannuationPercentage)),AND(PAYGIncomeM5>0,SuperGuaranteeContributionM5>(PAYGIncomeM5*CompulsarySuperannuationPercentage)),AND(PAYGIncomeM6>0,SuperGuaranteeContributionM6>(PAYGIncomeM6*CompulsarySuperannuationPercentage))),"Value > allowable guarantee value calculated on enter PAYG income","") -> 
C21: PROPOSED CONCESSIONAL contributions | S21: =(E21+G21+I21+K21+M21+O21) -> 0
C22: EXISTING CONCESSIONAL contributions | S22: =(E22+G22+I22+K22+M22+O22) -> 0
C23: =IF(OR(AND(ProposedConcessionalContributionsM1>0,(SuperGuaranteeContributionM1+ProposedConcessionalContributionsM1+E22)>ConcessionalContributionsCappedAmount),AND(ProposedConcessionalContributionsM2>0,(SuperGuaranteeContributionM2+ProposedConcessionalContributionsM2+G22)>ConcessionalContributionsCappedAmount),AND(ProposedConcessionalContributionsM3>0,(SuperGuaranteeContributionM3+ProposedConcessionalContributionsM3+I22)>ConcessionalContributionsCappedAmount),AND(ProposedConcessionalContributionsM4>0,(SuperGuaranteeContributionM4+ProposedConcessionalContributionsM4+K22)>ConcessionalContributionsCappedAmount),AND(ProposedConcessionalContributionsM5>0,(SuperGuaranteeContributionM5+ProposedConcessionalContributionsM5+M22)>ConcessionalContributionsCappedAmount),AND(ProposedConcessionalContributionsM6>0,(SuperGuaranteeContributionM6+ProposedConcessionalContributionsM6+O22)>ConcessionalContributionsCappedAmount)),"Concessional cap of " & TEXT(ConcessionalContributionsCappedAmount,"$00,000") & " has been exceeded","") -> 
C24: Additional NON-CONCESSIONAL contributions | S24: =(E24+G24+I24+K24+M24+O24) -> 0
C25: =IF(OR(AdditionalNonConcessionalContributionsM1>NonConcessionalContributionsCappedAmount,AdditionalNonConcessionalContributionsM2>NonConcessionalContributionsCappedAmount,AdditionalNonConcessionalContributionsM3>NonConcessionalContributionsCappedAmount,AdditionalNonConcessionalContributionsM4>NonConcessionalContributionsCappedAmount,AdditionalNonConcessionalContributionsM5>NonConcessionalContributionsCappedAmount,AdditionalNonConcessionalContributionsM6>NonConcessionalContributionsCappedAmount),"Non-Concessional cap of " & TEXT(NonConcessionalContributionsCappedAmount,"$000,000") & " has been exceeded","") ->  | E25: =IF(AND(SUM(Validation!B17:G17)<=0,OR(AdditionalNonConcessionalContributionsM1>AvailableSurplusForAdditionalVoluntaryNonConcessionContributionsM1,AdditionalNonConcessionalContributionsM2>AvailableSurplusForAdditionalVoluntaryNonConcessionContributionsM2,AdditionalNonConcessionalContributionsM3>AvailableSurplusForAdditionalVoluntaryNonConcessionContributionsM3,AdditionalNonConcessionalContributionsM4>AvailableSurplusForAdditionalVoluntaryNonConcessionContributionsM4,AdditionalNonConcessionalContributionsM5>AvailableSurplusForAdditionalVoluntaryNonConcessionContributionsM5,AdditionalNonConcessionalContributionsM6>AvailableSurplusForAdditionalVoluntaryNonConcessionContributionsM6)),"Member income & expense (below) incomplete or additional contribution unaffordable","") -> 
C27: SMSF Income / Expenses | S27: Annual Interest Expenses of Other AMSF Mortgages plus Loading
C29: SMSF Income | E29: Annual | I29: SMSF Expenses | M29: Other SMSF Mortgages
C30: Member Contibutions - Concessional | E30: =SUM(SuperGuaranteeContributionM1,SuperGuaranteeContributionM2,SuperGuaranteeContributionM3,SuperGuaranteeContributionM4,SuperGuaranteeContributionM5,SuperGuaranteeContributionM6,ProposedConcessionalContributionsM1,ProposedConcessionalContributionsM2,ProposedConcessionalContributionsM3,ProposedConcessionalContributionsM4,ProposedConcessionalContributionsM5,ProposedConcessionalContributionsM6,E22:O22) -> 0 | I30: Administration | M30: Total Loan Amount
C31: Member Contibutions - Non Concessional | E31: =MAX(0,SUM(AdditionalNonConcessionalContributionsM1,AdditionalNonConcessionalContributionsM2,AdditionalNonConcessionalContributionsM3,AdditionalNonConcessionalContributionsM4,AdditionalNonConcessionalContributionsM5,AdditionalNonConcessionalContributionsM6)) -> 0 | I31: Other Mortgage Repayment (stressed) | K31: =TotalSMSFOtherMortgagesAnnualRepayment*12*OtherMortgageRepaymentBuffer -> 0 | M31: Monthly Repayment
C32: Income on other SMSF investments | I32: Other P&L expenses | M32: Interest Rate | S32: =TotalSMSFOtherMortgagesLoanAmount*(TotalSMSFOtherMortgagesAnnualInterestRate*OtherMortgageRepaymentBuffer) -> 0
C33: Proposed Net CRE Rental Income | I33: Total Expenses | K33: =MAX(TotalSMSFAdministrationCost,IF(OR(TotalGrossIncome,TotalTaxableIncome)>0,MinimumAdministrationCost,0))+TotalSMSFOtherMortgagesAnnualRepaymentWithBuffer+TotalSMSFOtherPandLExpenses -> 1500
C34: Proposed Gross Residential Rental Income
C36: Gross Income | E36: =TotalSMSFMemberContributionsConcessional+TotalSMSFMemberContributionsNonConcessional+TotalSMSFIncomeOnOtherInvestments+ProposedNetCRERentalIncome+(ProposedGrossResidentialRentalIncome*RentalIncomeShading) -> 0 | I36: SMSF Tax | K36: =MAX((0),(TotalGrossIncome-TotalSMSFMemberContributionsNonConcessional-MAX(TotalSMSFAdministrationCost,MinimumAdministrationCost)-TotalSMSFOtherPandLExpenses-(NewLoanIAnnualnterestExpense+TotalSMSFOtherMortgagesAnnualInterestWithLoading)))*SuperannuationTax -> 0
C39: Results
C42: SMSF Income after expenses & tax before debt | E42: =TotalGrossIncome-TotalSMSFTax-MAX(TotalSMSFAdministrationCost,IF(TotalGrossIncome>0,MinimumAdministrationCost,0)-TotalSMSFOtherPandLExpenses) -> 0 | K42: Interest Expenses | M42: =NewLoanIAnnualnterestExpense+TotalSMSFOtherMortgagesAnnualInterestWithLoading -> 0
K43: Debt Repayments | M43: =(PandIRepaymentAmount*NumberOfMonthsInAYear)+TotalSMSFOtherMortgagesAnnualRepaymentWithBuffer -> 0
C44: =IF(O47="FAIL","DSCR HAS FAILED, PLEASE ENSURE ALL ADDITIONAL MEMBER CONTRIBUTIONS HAVE BEEN EXPLORED OR MEMBERS INCOME & EXPENSES SERVICE IF ENTERED BELOW","") -> 
K46: Interest Coverage Ratio (ICR): | M46: =IF(AND(S91+S93>=0,CheckForCompleteness="COMPLETE"),IFERROR(E42/M42,0),"") -> 
K47: Debt Service Coverage Ratio (DSCR): | M47: =IF(AND(S91+S93>=0,CheckForCompleteness="COMPLETE"),IFERROR(E42/M43,0),"") ->  | O47: =IF(M50="INCOMPLETE","INCOMPLETE",IF(AND(M47>=MinimumSMSFDSCR,S91>=0,S93>=0),"PASS","FAIL")) -> INCOMPLETE
M49: Application Status
M50: =IF(OR(NewLoanAmount="",InterestRate="",LoanTermInYears="",LoanTermInYears<IOTermInYears,C20<>"",E20<>"",C23<>"",E23<>"",C25<>"",E25<>""),"INCOMPLETE",IF(AND(E56="",OR(E65<>0,E70<>0,SUM(E73:E77)<>0)),"INCOMPLETE",IF(AND(G56="",OR(G65<>0,G70<>0,SUM(G73:G77)<>0)),"INCOMPLETE",IF(AND(I56="",OR(I65<>0,I70<>0,SUM(I73:I77)<>0)),"INCOMPLETE",IF(AND(K56="",OR(K65<>0,K70<>0,SUM(K73:K77)<>0)),"INCOMPLETE",IF(AND(M56="",OR(M65<>0,M70<>0,SUM(M73:M77)<>0)),"INCOMPLETE",IF(AND(O56="",OR(O65<>0,O70<>0,SUM(O73:O77)<>0)),"INCOMPLETE","COMPLETE"))))))) -> INCOMPLETE
C54: Member Income & Expenses - COMPLETE ONLY IF A MEMBER(S) ADDITIONAL CONTRIBUTIONS ARE REQUIRED (ROWS 21 & 24)
C55: Member Details | E55: Member 1 | G55: Member 2 | I55: Member 3 | K55: Member 4 | M55: Member 5 | O55: Member 6
C56: Status
C57: Couple With
C58: Dependants
E59: Enter a Status | G59: Enter a Status | I59: Enter a Status | K59: Enter a Status | M59: Enter a Status | O59: Enter a Status
C61: PAYG Income
C62: Self employed & Other taxable income
C63: Untaxed Allowable Income
C64: Gross Residential Rental Income
C65: Total Income | E65: =E61++E62+E63+E64*RentalIncomeShading -> 0 | G65: =G61++G62+G63+G64*RentalIncomeShading -> 0 | I65: =I61++I62+I63+I64*RentalIncomeShading -> 0 | K65: =K61++K62+K63+K64*RentalIncomeShading -> 0 | M65: =M61++M62+M63+M64*RentalIncomeShading -> 0 | O65: =O61++O62+O63+O64*RentalIncomeShading -> 0 | S65: =(E65+G65+I65+K65+M65+O65) -> 0 | T65: Total Gross Annual Income
C67: Investment Property Loan Balance (personal name)
C68: Tax | E68: =VLOOKUP(E84,IncomeTaxTable,2,TRUE)+MAX(((E84-VLOOKUP(E84,IncomeTaxTable,1,TRUE))*VLOOKUP(E84,IncomeTaxTable,3,TRUE)),0) +IF(E84<=MinimumForPartialLevy,0,IF(E84>MinimumForFullLevy,E84*MedicareFullLevyPerc,(E84-MinimumForPartialLevy)*MedicarePartialLevyPerc)) -> 0 | G68: =VLOOKUP(G84,IncomeTaxTable,2,TRUE)+MAX(((G84-VLOOKUP(G84,IncomeTaxTable,1,TRUE))*VLOOKUP(G84,IncomeTaxTable,3,TRUE)),0) +IF(G84<=MinimumForPartialLevy,0,IF(G84>MinimumForFullLevy,G84*MedicareFullLevyPerc,(G84-MinimumForPartialLevy)*MedicarePartialLevyPerc)) -> 0 | I68: =VLOOKUP(I84,IncomeTaxTable,2,TRUE)+MAX(((I84-VLOOKUP(I84,IncomeTaxTable,1,TRUE))*VLOOKUP(I84,IncomeTaxTable,3,TRUE)),0) +IF(I84<=MinimumForPartialLevy,0,IF(I84>MinimumForFullLevy,I84*MedicareFullLevyPerc,(I84-MinimumForPartialLevy)*MedicarePartialLevyPerc)) -> 0 | K68: =VLOOKUP(K84,IncomeTaxTable,2,TRUE)+MAX(((K84-VLOOKUP(K84,IncomeTaxTable,1,TRUE))*VLOOKUP(K84,IncomeTaxTable,3,TRUE)),0) +IF(K84<=MinimumForPartialLevy,0,IF(K84>MinimumForFullLevy,K84*MedicareFullLevyPerc,(K84-MinimumForPartialLevy)*MedicarePartialLevyPerc)) -> 0 | M68: =VLOOKUP(M84,IncomeTaxTable,2,TRUE)+MAX(((M84-VLOOKUP(M84,IncomeTaxTable,1,TRUE))*VLOOKUP(M84,IncomeTaxTable,3,TRUE)),0) +IF(M84<=MinimumForPartialLevy,0,IF(M84>MinimumForFullLevy,M84*MedicareFullLevyPerc,(M84-MinimumForPartialLevy)*MedicarePartialLevyPerc)) -> 0 | O68: =VLOOKUP(O84,IncomeTaxTable,2,TRUE)+MAX(((O84-VLOOKUP(O84,IncomeTaxTable,1,TRUE))*VLOOKUP(O84,IncomeTaxTable,3,TRUE)),0) +IF(O84<=MinimumForPartialLevy,0,IF(O84>MinimumForFullLevy,O84*MedicareFullLevyPerc,(O84-MinimumForPartialLevy)*MedicarePartialLevyPerc)) -> 0
C69: Tax offset for Low Income Earners | E69: =0-(IF(E56="Company",0,MIN(E68,IF(OR(E84<=0,E84>=TaxOffsetMaximumEntitlement),0,TaxOffsetForLowIncomeEarners-IF(E84>TaxOffsetIncomeThreshholds,((E84-TaxOffsetIncomeThreshholds)*TaxOffSetReducedByPerc),0))))+IF(OR(E56="Company",E84="",E84=0),0,IF(VLOOKUP(E84,TaxOffsetForLowIncomeTable,2,TRUE)+(E84-VLOOKUP(E84,TaxOffsetForLowIncomeTable,1,TRUE))*VLOOKUP(E84,TaxOffsetForLowIncomeTable,3,TRUE)<0,0,VLOOKUP(E84,TaxOffsetForLowIncomeTable,2,TRUE)+(E84-VLOOKUP(E84,TaxOffsetForLowIncomeTable,1,TRUE))*VLOOKUP(E84,TaxOffsetForLowIncomeTable,3,TRUE)))) -> 0 | G69: =0-(IF(G56="Company",0,MIN(G68,IF(OR(G84<=0,G84>=TaxOffsetMaximumEntitlement),0,TaxOffsetForLowIncomeEarners-IF(G84>TaxOffsetIncomeThreshholds,((G84-TaxOffsetIncomeThreshholds)*TaxOffSetReducedByPerc),0))))+IF(OR(G56="Company",G84="",G84=0),0,IF(VLOOKUP(G84,TaxOffsetForLowIncomeTable,2,TRUE)+(G84-VLOOKUP(G84,TaxOffsetForLowIncomeTable,1,TRUE))*VLOOKUP(G84,TaxOffsetForLowIncomeTable,3,TRUE)<0,0,VLOOKUP(G84,TaxOffsetForLowIncomeTable,2,TRUE)+(G84-VLOOKUP(G84,TaxOffsetForLowIncomeTable,1,TRUE))*VLOOKUP(G84,TaxOffsetForLowIncomeTable,3,TRUE)))) -> 0 | I69: =0-(IF(I56="Company",0,MIN(I68,IF(OR(I84<=0,I84>=TaxOffsetMaximumEntitlement),0,TaxOffsetForLowIncomeEarners-IF(I84>TaxOffsetIncomeThreshholds,((I84-TaxOffsetIncomeThreshholds)*TaxOffSetReducedByPerc),0))))+IF(OR(I56="Company",I84="",I84=0),0,IF(VLOOKUP(I84,TaxOffsetForLowIncomeTable,2,TRUE)+(I84-VLOOKUP(I84,TaxOffsetForLowIncomeTable,1,TRUE))*VLOOKUP(I84,TaxOffsetForLowIncomeTable,3,TRUE)<0,0,VLOOKUP(I84,TaxOffsetForLowIncomeTable,2,TRUE)+(I84-VLOOKUP(I84,TaxOffsetForLowIncomeTable,1,TRUE))*VLOOKUP(I84,TaxOffsetForLowIncomeTable,3,TRUE)))) -> 0 | K69: =0-(IF(K56="Company",0,MIN(K68,IF(OR(K84<=0,K84>=TaxOffsetMaximumEntitlement),0,TaxOffsetForLowIncomeEarners-IF(K84>TaxOffsetIncomeThreshholds,((K84-TaxOffsetIncomeThreshholds)*TaxOffSetReducedByPerc),0))))+IF(OR(K56="Company",K84="",K84=0),0,IF(VLOOKUP(K84,TaxOffsetForLowIncomeTable,2,TRUE)+(K84-VLOOKUP(K84,TaxOffsetForLowIncomeTable,1,TRUE))*VLOOKUP(K84,TaxOffsetForLowIncomeTable,3,TRUE)<0,0,VLOOKUP(K84,TaxOffsetForLowIncomeTable,2,TRUE)+(K84-VLOOKUP(K84,TaxOffsetForLowIncomeTable,1,TRUE))*VLOOKUP(K84,TaxOffsetForLowIncomeTable,3,TRUE)))) -> 0 | M69: =0-(IF(M56="Company",0,MIN(M68,IF(OR(M84<=0,M84>=TaxOffsetMaximumEntitlement),0,TaxOffsetForLowIncomeEarners-IF(M84>TaxOffsetIncomeThreshholds,((M84-TaxOffsetIncomeThreshholds)*TaxOffSetReducedByPerc),0))))+IF(OR(M56="Company",M84="",M84=0),0,IF(VLOOKUP(M84,TaxOffsetForLowIncomeTable,2,TRUE)+(M84-VLOOKUP(M84,TaxOffsetForLowIncomeTable,1,TRUE))*VLOOKUP(M84,TaxOffsetForLowIncomeTable,3,TRUE)<0,0,VLOOKUP(M84,TaxOffsetForLowIncomeTable,2,TRUE)+(M84-VLOOKUP(M84,TaxOffsetForLowIncomeTable,1,TRUE))*VLOOKUP(M84,TaxOffsetForLowIncomeTable,3,TRUE)))) -> 0 | O69: =0-(IF(O56="Company",0,MIN(O68,IF(OR(O84<=0,O84>=TaxOffsetMaximumEntitlement),0,TaxOffsetForLowIncomeEarners-IF(O84>TaxOffsetIncomeThreshholds,((O84-TaxOffsetIncomeThreshholds)*TaxOffSetReducedByPerc),0))))+IF(OR(O56="Company",O84="",O84=0),0,IF(VLOOKUP(O84,TaxOffsetForLowIncomeTable,2,TRUE)+(O84-VLOOKUP(O84,TaxOffsetForLowIncomeTable,1,TRUE))*VLOOKUP(O84,TaxOffsetForLowIncomeTable,3,TRUE)<0,0,VLOOKUP(O84,TaxOffsetForLowIncomeTable,2,TRUE)+(O84-VLOOKUP(O84,TaxOffsetForLowIncomeTable,1,TRUE))*VLOOKUP(O84,TaxOffsetForLowIncomeTable,3,TRUE)))) -> 0
C70: Net Income After Tax | E70: =E65-(IF(E68+E69>0,E68+E69,0)) -> 0 | G70: =G65-(IF(G68+G69>0,G68+G69,0)) -> 0 | I70: =I65-(IF(I68+I69>0,I68+I69,0)) -> 0 | K70: =K65-(IF(K68+K69>0,K68+K69,0)) -> 0 | M70: =M65-(IF(M68+M69>0,M68+M69,0)) -> 0 | O70: =O65-(IF(O68+O69>0,O68+O69,0)) -> 0 | S70: =(E70+G70+I70+K70+M70+O70) -> 0 | T70: Total Net Annual Income
C72: Commitments (per month)
C73: Declared Living Expenses
C74: Rent/Board
C75: Total Credit Card Limit
C76: Personal Mortgage Repayments
C77: Other Consumer Debt
C78: Is an Applicant | E78: =OR(E56<>"") -> FALSE | G78: =OR(G56<>"") -> FALSE | I78: =OR(I56<>"") -> FALSE | K78: =OR(K56<>"") -> FALSE | M78: =OR(M56<>"") -> FALSE | O78: =OR(O56<>"") -> FALSE
C79: Spouse Dependants | E79: =IFERROR(HLOOKUP(E57,ApplicantDetailsTable,4,FALSE),0) -> 0 | G79: =IFERROR(HLOOKUP(G57,ApplicantDetailsTable,4,FALSE),0) -> 0 | I79: =IFERROR(HLOOKUP(I57,ApplicantDetailsTable,4,FALSE),0) -> 0 | K79: =IFERROR(HLOOKUP(K57,ApplicantDetailsTable,4,FALSE),0) -> 0 | M79: =IFERROR(HLOOKUP(M57,ApplicantDetailsTable,4,FALSE),0) -> 0 | O79: =IFERROR(HLOOKUP(O57,ApplicantDetailsTable,4,FALSE),0) -> 0
C80: Pepper Status Code | E80: =IF(E$56="Individual (Couple)","P-C",IF(E$56="Individual (Single)","P-S","")) ->  | G80: =IF(G$56="Individual (Couple)","P-C",IF(G$56="Individual (Single)","P-S","")) ->  | I80: =IF(I$56="Individual (Couple)","P-C",IF(I$56="Individual (Single)","P-S","")) ->  | K80: =IF(K$56="Individual (Couple)","P-C",IF(K$56="Individual (Single)","P-S","")) ->  | M80: =IF(M$56="Individual (Couple)","P-C",IF(M$56="Individual (Single)","P-S","")) ->  | O80: =IF(O$56="Individual (Couple)","P-C",IF(O$56="Individual (Single)","P-S","")) -> 
C81: Pepper Dependents Code | E81: =IF(E$56="Individual (Couple)","P-CD"&INDEX(Validation!$B$21:$B$26,MATCH((E$58+E$79),Validation!$A$21:$A$26,1)),IF(E$56="Individual (Single)","P-SD"&INDEX(Validation!$B$21:$B$26,MATCH((E$58+E$79),Validation!$A$21:$A$26,1)),"")) ->  | G81: =IF(G$56="Individual (Couple)","P-CD"&INDEX(Validation!$B$21:$B$26,MATCH((G$58+G$79),Validation!$A$21:$A$26,1)),IF(G$56="Individual (Single)","P-SD"&INDEX(Validation!$B$21:$B$26,MATCH((G$58+G$79),Validation!$A$21:$A$26,1)),"")) ->  | I81: =IF(I$56="Individual (Couple)","P-CD"&INDEX(Validation!$B$21:$B$26,MATCH((I$58+I$79),Validation!$A$21:$A$26,1)),IF(I$56="Individual (Single)","P-SD"&INDEX(Validation!$B$21:$B$26,MATCH((I$58+I$79),Validation!$A$21:$A$26,1)),"")) ->  | K81: =IF(K$56="Individual (Couple)","P-CD"&INDEX(Validation!$B$21:$B$26,MATCH((K$58+K$79),Validation!$A$21:$A$26,1)),IF(K$56="Individual (Single)","P-SD"&INDEX(Validation!$B$21:$B$26,MATCH((K$58+K$79),Validation!$A$21:$A$26,1)),"")) ->  | M81: =IF(M$56="Individual (Couple)","P-CD"&INDEX(Validation!$B$21:$B$26,MATCH((M$58+M$79),Validation!$A$21:$A$26,1)),IF(M$56="Individual (Single)","P-SD"&INDEX(Validation!$B$21:$B$26,MATCH((M$58+M$79),Validation!$A$21:$A$26,1)),"")) ->  | O81: =IF(O$56="Individual (Couple)","P-CD"&INDEX(Validation!$B$21:$B$26,MATCH((O$58+O$79),Validation!$A$21:$A$26,1)),IF(O$56="Individual (Single)","P-SD"&INDEX(Validation!$B$21:$B$26,MATCH((O$58+O$79),Validation!$A$21:$A$26,1)),"")) -> 
C82: Exclude for LE calc | E82: =IFERROR(IF(MATCH(E57,$E$55:$O$55,0)<(COLUMN()-COLUMN($E$55:$O$55)+1),TRUE,FALSE),FALSE) -> FALSE | G82: =IFERROR(IF(MATCH(G57,$E$55:$O$55,0)<(COLUMN()-COLUMN($E$55:$O$55)+1),TRUE,FALSE),FALSE) -> FALSE | I82: =IFERROR(IF(MATCH(I57,$E$55:$O$55,0)<(COLUMN()-COLUMN($E$55:$O$55)+1),TRUE,FALSE),FALSE) -> FALSE | K82: =IFERROR(IF(MATCH(K57,$E$55:$O$55,0)<(COLUMN()-COLUMN($E$55:$O$55)+1),TRUE,FALSE),FALSE) -> FALSE | M82: =IFERROR(IF(MATCH(M57,$E$55:$O$55,0)<(COLUMN()-COLUMN($E$55:$O$55)+1),TRUE,FALSE),FALSE) -> FALSE | O82: =IFERROR(IF(MATCH(O57,$E$55:$O$55,0)<(COLUMN()-COLUMN($E$55:$O$55)+1),TRUE,FALSE),FALSE) -> FALSE
C84: Total Taxable Income | E84: =MAX(E61+E62+E64*RentalIncomeShading-E67*WorkingsForNegativeGearing,0) -> 0 | G84: =MAX(G61+G62+G64*RentalIncomeShading-G67*WorkingsForNegativeGearing,0) -> 0 | I84: =MAX(I61+I62+I64*RentalIncomeShading-I67*WorkingsForNegativeGearing,0) -> 0 | K84: =MAX(K61+K62+K64*RentalIncomeShading-K67*WorkingsForNegativeGearing,0) -> 0 | M84: =MAX(M61+M62+M64*RentalIncomeShading-M67*WorkingsForNegativeGearing,0) -> 0 | O84: =MAX(O61+O62+O64*RentalIncomeShading-O67*WorkingsForNegativeGearing,0) -> 0 | S84: =(E84+G84+I84+K84+M84+O84) -> 0 | T84: Total Taxable Income
C85: Tax calculation on commitments (to calculate net uncommitted income) | E85: =VLOOKUP((E90),IncomeTaxTable,2,TRUE)+MAX((((E90)-VLOOKUP((E90),IncomeTaxTable,1,TRUE))*VLOOKUP((E90),IncomeTaxTable,3,TRUE)),0) +IF((E90)<=MinimumForPartialLevy,0,IF((E90-E63)>MinimumForFullLevy,(E90)*MedicareFullLevyPerc,((E90)-MinimumForPartialLevy)*MedicarePartialLevyPerc)) -> 0 | G85: =VLOOKUP((G90),IncomeTaxTable,2,TRUE)+MAX((((G90)-VLOOKUP((G90),IncomeTaxTable,1,TRUE))*VLOOKUP((G90),IncomeTaxTable,3,TRUE)),0) +IF((G90)<=MinimumForPartialLevy,0,IF((G90-G63)>MinimumForFullLevy,(G90)*MedicareFullLevyPerc,((G90)-MinimumForPartialLevy)*MedicarePartialLevyPerc)) -> 0 | I85: =VLOOKUP((I90),IncomeTaxTable,2,TRUE)+MAX((((I90)-VLOOKUP((I90),IncomeTaxTable,1,TRUE))*VLOOKUP((I90),IncomeTaxTable,3,TRUE)),0) +IF((I90)<=MinimumForPartialLevy,0,IF((I90-I63)>MinimumForFullLevy,(I90)*MedicareFullLevyPerc,((I90)-MinimumForPartialLevy)*MedicarePartialLevyPerc)) -> 0 | K85: =VLOOKUP((K90),IncomeTaxTable,2,TRUE)+MAX((((K90)-VLOOKUP((K90),IncomeTaxTable,1,TRUE))*VLOOKUP((K90),IncomeTaxTable,3,TRUE)),0) +IF((K90)<=MinimumForPartialLevy,0,IF((K90-K63)>MinimumForFullLevy,(K90)*MedicareFullLevyPerc,((K90)-MinimumForPartialLevy)*MedicarePartialLevyPerc)) -> 0 | M85: =VLOOKUP((M90),IncomeTaxTable,2,TRUE)+MAX((((M90)-VLOOKUP((M90),IncomeTaxTable,1,TRUE))*VLOOKUP((M90),IncomeTaxTable,3,TRUE)),0) +IF((M90)<=MinimumForPartialLevy,0,IF((M90-M63)>MinimumForFullLevy,(M90)*MedicareFullLevyPerc,((M90)-MinimumForPartialLevy)*MedicarePartialLevyPerc)) -> 0 | O85: =VLOOKUP((O90),IncomeTaxTable,2,TRUE)+MAX((((O90)-VLOOKUP((O90),IncomeTaxTable,1,TRUE))*VLOOKUP((O90),IncomeTaxTable,3,TRUE)),0) +IF((O90)<=MinimumForPartialLevy,0,IF((O90-O63)>MinimumForFullLevy,(O90)*MedicareFullLevyPerc,((O90)-MinimumForPartialLevy)*MedicarePartialLevyPerc)) -> 0
C86: Spouse Income | E86: =IFERROR(HLOOKUP(E57,ApplicantDetailsTable,7,FALSE),0) -> 0 | G86: =IFERROR(HLOOKUP(G57,ApplicantDetailsTable,7,FALSE),0) -> 0 | I86: =IFERROR(HLOOKUP(I57,ApplicantDetailsTable,7,FALSE),0) -> 0 | K86: =IFERROR(HLOOKUP(K57,ApplicantDetailsTable,7,FALSE),0) -> 0 | M86: =IFERROR(HLOOKUP(M57,ApplicantDetailsTable,7,FALSE),0) -> 0 | O86: =IFERROR(HLOOKUP(O57,ApplicantDetailsTable,7,FALSE),0) -> 0
C87: Income Bracket | E87: =IFERROR(HLOOKUP(E63+E84+E86,HemCombinedIncomeRange,3,TRUE),1) -> 1 | G87: =IFERROR(HLOOKUP(G63+G84+G86,HemCombinedIncomeRange,3,TRUE),1) -> 1 | I87: =IFERROR(HLOOKUP(I63+I84+I86,HemCombinedIncomeRange,3,TRUE),1) -> 1 | K87: =IFERROR(HLOOKUP(K63+K84+K86,HemCombinedIncomeRange,3,TRUE),1) -> 1 | M87: =IFERROR(HLOOKUP(M63+M84+M86,HemCombinedIncomeRange,3,TRUE),1) -> 1 | O87: =IFERROR(HLOOKUP(O63+O84+O86,HemCombinedIncomeRange,3,TRUE),1) -> 1
C88: HEM Living Expense (monthly) | E88: =IFERROR(IF(AND(E78,NOT(E82)),(VLOOKUP(E80,HemTableForExpenses,E87+1,FALSE) +(VLOOKUP(E81,HemTableForExpenses,E87+1,FALSE))*(E58+E79))*NumberOfWeeksInAYear,0),0)/NumberOfMonthsInAYear -> 0 | G88: =IFERROR(IF(AND(G78,NOT(G82)),(VLOOKUP(G80,HemTableForExpenses,G87+1,FALSE) +(VLOOKUP(G81,HemTableForExpenses,G87+1,FALSE))*(G58+G79))*NumberOfWeeksInAYear,0),0)/NumberOfMonthsInAYear -> 0 | I88: =IFERROR(IF(AND(I78,NOT(I82)),(VLOOKUP(I80,HemTableForExpenses,I87+1,FALSE) +(VLOOKUP(I81,HemTableForExpenses,I87+1,FALSE))*(I58+I79))*NumberOfWeeksInAYear,0),0)/NumberOfMonthsInAYear -> 0 | K88: =IFERROR(IF(AND(K78,NOT(K82)),(VLOOKUP(K80,HemTableForExpenses,K87+1,FALSE) +(VLOOKUP(K81,HemTableForExpenses,K87+1,FALSE))*(K58+K79))*NumberOfWeeksInAYear,0),0)/NumberOfMonthsInAYear -> 0 | M88: =IFERROR(IF(AND(M78,NOT(M82)),(VLOOKUP(M80,HemTableForExpenses,M87+1,FALSE) +(VLOOKUP(M81,HemTableForExpenses,M87+1,FALSE))*(M58+M79))*NumberOfWeeksInAYear,0),0)/NumberOfMonthsInAYear -> 0 | O88: =IFERROR(IF(AND(O78,NOT(O82)),(VLOOKUP(O80,HemTableForExpenses,O87+1,FALSE) +(VLOOKUP(O81,HemTableForExpenses,O87+1,FALSE))*(O58+O79))*NumberOfWeeksInAYear,0),0)/NumberOfMonthsInAYear -> 0
C90: Total Commitments (annualised) | E90: =(MAX(E88,E73)+(E74+(E75*CreditCardCommitments)+(E76*OtherMortgageRepaymentBuffer)+E77))*NumberOfMonthsInAYear -> 0 | G90: =(MAX(G88,G73)+(G74+(G75*CreditCardCommitments)+(G76*OtherMortgageRepaymentBuffer)+G77))*NumberOfMonthsInAYear -> 0 | I90: =(MAX(I88,I73)+(I74+(I75*CreditCardCommitments)+(I76*OtherMortgageRepaymentBuffer)+I77))*NumberOfMonthsInAYear -> 0 | K90: =(MAX(K88,K73)+(K74+(K75*CreditCardCommitments)+(K76*OtherMortgageRepaymentBuffer)+K77))*NumberOfMonthsInAYear -> 0 | M90: =(MAX(M88,M73)+(M74+(M75*CreditCardCommitments)+(M76*OtherMortgageRepaymentBuffer)+M77))*NumberOfMonthsInAYear -> 0 | O90: =(MAX(O88,O73)+(O74+(O75*CreditCardCommitments)+(O76*OtherMortgageRepaymentBuffer)+O77))*NumberOfMonthsInAYear -> 0
C91: Available surplus for additional voluntary concessional contributions (capped at $27,500) | E91: =MIN((ConcessionalContributionsCappedAmount-SuperGuaranteeContributionM1),IF((E65-E90-E85)<0,0,(E65-E90-E85))) -> 0 | G91: =MIN((ConcessionalContributionsCappedAmount-SuperGuaranteeContributionM2),IF((G65-G90-G85)<0,0,(G65-G90-G85))) -> 0 | I91: =MIN((ConcessionalContributionsCappedAmount-SuperGuaranteeContributionM3),IF((I65-I90-I85)<0,0,(I65-I90-I85))) -> 0 | K91: =MIN((ConcessionalContributionsCappedAmount-SuperGuaranteeContributionM4),IF((K65-K90-K85)<0,0,(K65-K90-K85))) -> 0 | M91: =MIN((ConcessionalContributionsCappedAmount-SuperGuaranteeContributionM5),IF((M65-M90-M85)<0,0,(M65-M90-M85))) -> 0 | O91: =MIN((ConcessionalContributionsCappedAmount-SuperGuaranteeContributionM6),IF((O65-O90-O85)<0,0,(O65-O90-O85))) -> 0 | S91: =(E91+G91+I91+K91+M91+O91) -> 0
C93: Available surplus for additional voluntary non-concessional contributions (capped at $110,000) | E93: =MIN(NonConcessionalContributionsCappedAmount,(IF(OR(E70>0,E90>0),(E70-E90-E91),0))) -> 0 | G93: =MIN(NonConcessionalContributionsCappedAmount,(IF(OR(G70>0,G90>0),(G70-G90-G91),0))) -> 0 | I93: =MIN(NonConcessionalContributionsCappedAmount,(IF(OR(I70>0,I90>0),(I70-I90-I91),0))) -> 0 | K93: =MIN(NonConcessionalContributionsCappedAmount,(IF(OR(K70>0,K90>0),(K70-K90-K91),0))) -> 0 | M93: =MIN(NonConcessionalContributionsCappedAmount,(IF(OR(M70>0,M90>0),(M70-M90-M91),0))) -> 0 | O93: =MIN(NonConcessionalContributionsCappedAmount,(IF(OR(O70>0,O90>0),(O70-O90-O91),0))) -> 0 | S93: =(E93+G93+I93+K93+M93+O93) -> 0
A95: Important information Commercial in confidence - this document has been produced for the intended recipients only. It must not, under any circumstance, be copied or distributed in any way to a party other than the intended recipients. SMSF serviceability calculator is correct as at 16th October 2023 and subject to change. All applications are subject to credit assessment, eligibility criteria and lending limits. Terms, conditions, fees and charges apply. Information provided in the SMSF serviceability calculator is factual information only and is not intended to implement any recommendation or advice about any financial product(s) or constitute tax advice. Consult a licensed financial or tax advice for financial and/or tax advice. The results of the SMSF serviceability calculator are based on information provided and is to be used as a guide only. Serviceability may be different when a full assessment is completed It does not constitute a quote, pre-qualification or approval or offer for credit and commitments should not be entered based on it. Pepper Money Limited ABN 51 094 317 647

Sheet User Guide - SMSF
A1: SMSF Serviceability Calculator
A3: Field Name | B3: Instruction | C3: Field type
A4: Clear Form (BUTTON) | B4: Allows the user to clear all fields in the calculator | C4: User entry
A5: SMSF Name | B5: Name of the SMSF the application relates | C5: User entry
A6: New Loan Amount | B6: Mandatory field - total loan amount including any capitalised fees | C6: User entry
A7: Interest Rate | B7: Mandatory field - actual interest rate of the proposed loan | C7: User entry
A8: Loan Term (Years) | B8: Mandatory field - the total loan term of the proposed loan (maximum term 30 years) | C8: User entry
A9: I/O Term (Years) | B9: The interest only term of the proposed loan. Left blank if not applicable (maximum term 5 years allowed) | C9: User entry
A10: P&I Repayment | B10: Principal and interest repayment of the proposed loans ammortisation period | C10: Calculated
A11: IO Repayment | B11: Interest Only repayment of the proposed loan, if applicable | C11: Calculated
A12: Superannuation guarantee | B12: Amount Member receives from PAYG employment under the employer superannuation guarantee scheme. Verified through SMSF financials or PAYG income verification. | C12: User entry
A13: PROPOSED CONCESSIONAL contributions | B13: Amount Member intends to pay in addition to the Superannuation guarantee. This amount added with the Superannuation guarantee and PROPOSED CONCESSIONAL contributions values cannot exceed $27,500 for each member. For this amount to be considered, the Members personal financial information needs to be collected and verified and the Members Income & Expense section of the calculator completed. | C13: User entry
A14: EXISTING CONCESSIONAL contributions | B14: Amount Member currently pays in addition to the Superannuation guarantee. This amount added with the Superannuation guarantee and PROPOSED CONCESSIONAL contributions values cannot exceed $27,500 for each member. For this amount to be considered, the Members personal financial information needs to be collected and verified and the Members Income & Expense section of the calculator completed. | C14: User entry
A15: Additional NON-CONCESSIONAL contributions | B15: Amount Member does or intends to pay in addition to the Superannuation guarantee and any other conncessional contributions, where that total concessional amount will exceed $27,500. This amount cannot exceed $110,000. This amount added with the Superannuation guarantee value cannot exceed $27,500. For this amount to be considered, the Members personal financial information needs to be collected and verified and the Members Income & Expense section of the calculator completed. The amount to be entered is post-tax which is calculated in the Members Income & Expense section. | C15: User entry
A16: Member Contibutions - Concessional | B16: The combined value the Superannuation guarantee and Additional Concessional Contributions entered above. | C16: Calculated
A17: Member Contibutions - Non Concessional | B17: The value Additional Non-Concessional Contributions entered above. | C17: Calculated
A18: Income on other SMSF investments | B18: This is the return on investments currently owned by the SMSF and evidenced through the SMSF financials. This excludes any capitals gains and where the current investments will be liquidated to complete a property purchase, the returns will be adjusted to represent a return of the residual investment value being retained | C18: User entry
A19: Proposed Net CRE Rental Income | B19: 100% of CRE rental income after outgoins paid for by landlord | C19: User entry
A20: Proposed Gross Residential Rental Income | B20: Enter 100% of gross residential rental income if to be received by the business. The calculator will shade this income by 20% | C20: User entry
A21: Gross Income | B21: A total of all SMSF income once haircuts are applied | C21: Calculated
A22: Administration | B22: Annual costs of administrating the SMSF. Pepper will apply a floor of $1500 | C22: User entry
A23: Other Mortgage Repayment (stressed) | B23: Annual repayment of any existing SMSF mortgages buffer by 25% | C23: Calculated
A24: Other P&L expenses | B24: Any other ongoing expenses of the SMSF | C24: User entry
A25: Total Expenses | B25: A total of all SMSF expenses | C25: Calculated
A26: SMSF Tax | B26: 15% Tax applying to the SMSF being Gross income minus Member Contributions - Non Concessional (which have already been tax) minus Interest on the proposed loan (inclusive of interest rate loading) minus Interest on existing SMSF Mortgage (inclusive of other mortgage loading) | C26: Calculated
A27: Total Loan Amount | B27: Total balances of any other mortgages held by the SMSF | C27: User entry
A28: Monthly Repayment | B28: Total of actual repayment of any other mortgages held by the SMSF | C28: User entry
A29: Interest Rate | B29: Actual interest rate on any other mortgages held by the SMSF. Where multiple mortgage are held by the SMSF, interest rate to be weighted by loan balance of each loan. Formula = ((loan 1 balance x loan 1 interest rate)+(loan 2 balance x loan 2 interest rate) etc) / total of all loan balances | C29: User entry
A30: SMSF Income after expenses & tax before interest | B30: Gross Income less non-debt expenses less tax | C30: Calculated
A31: Interest Expenses | B31: Total SMSF Interest Expense per annum for all SMSF mortgages (Pepper and external) | C31: Calculated
A32: Debt Repayments | B32: Total SMSF debt repayments per annum including Proposed loan (if applicable, would include P&I repayments over residual term after any interest only period) | C32: Calculated
A33: Interest Cover Ratio (ICR) | B33: SMSF Income divided by Interest Expenses | C33: Calculated
A34: Debt Service Coverage Ratio (DSCR) | B34: SMSF Income divided by debt repayments | C34: Calculated
A35: DSCR Outcome | B35: Formula: All mandatory fields to be completed otherwise shows incomplete, where DSCR < 1.25 then result is FAIL otherwise result is PASS | C35: Calculated
A36: Status | B36: For each Member, what is their marital status. | C36: User entry
A37: Couple With | B37: Links members who are a couple for household income band selection for living expense benchmark. This field must be correctly completed for both individuals of a couple, where one member of a couple is not correctly linked the living expense will be calculated as an additional couple living expense. Drop down selection N/A, Non-Loan Party or Applicant “X” when another Applicant is applied with a Couple status | C37: User entry
A38: Dependents | B38: Number of child dependents, aged < 18, the Member has. Each dependent child must only be entered once per couple. If a dependent is entered for both individuals of a couple, that dependent will be counted twice. | C38: User entry
A39: Gross Annual Income | B39: Gross annual income of member from acceptable taxable income sources external to business income. Do NOT include Directors Fees/Salary/Super if included in addbacks. | C39: User entry
A40: Untaxed Allowable Income | B40: Income from acceptable untaxed income sources. Tax is not calculated on this income. | C40: User entry
A41: Gross Residential Rental Income (Other) | B41: Rental income entered at 100%. For the purposes of allowable income for serviceability, 80% of this income is used for servicing. Care: do NOT enter if income has been included under Business Income. | C41: User entry
A42: Investment Property Loan Balance (personal name) | B42: This is the total balance of investment loans held by the member. For tax purposes, negative gearing will be applied to the calculated taxable income. For company members, if this interest has been calculated in the SEIC then this field should not be populated. | C42: User entry
A43: Declared Living Expenses | B43: Total personal living expenses per month declared by the customer (sum of all members declared living expenses) | C43: User entry
A44: Rent/Board | B44: Rental or board expense paid by the customer. | C44: User entry
A45: Total Credit Card Limit | B45: Total credit card limit of all continuing credit cards. | C45: User entry
A46: Personal Mortgage Repayments | B46: Mortgage repayments of any Personal continuing mortgage repayments. | C46: User entry
A47: Other Consumer Debt | B47: Any other commitments the member has such as personal loans, child support, HEC’s. | C47: User entry
A48: Business Income (EBITDA + net personal contribution) | B48: Formula: EBITDA plus Net Personal Contribution | C48: User entry
A49: Total Commitments (annualised) | B49: The member total commitment | C49: Calculated
A50: Available surplus for additional voluntary concessional contributions (capped at $27,500) | B50: Surplus pre-tax member income after members expenses available to make additional contributions. Capped at $27,500 | C50: Calculated
A51: Available surplus for additional voluntary non-concessional contributions (capped at $110,000) | B51: Surplus post-tax member income after members expenses and tax available to make additional contributions. Capped at $110,000 | C51: Calculated

Sheet HEM Table (hidden)
A1: Combined Couple Gross Income | C1: =B2 -> 0 | D1: =C2 -> 25000 | E1: =D2 -> 37000 | F1: 49000 | G1: 61000 | H1: 74000 | I1: 98000 | J1: 123000 | K1: 147000 | L1: 172000 | M1: 196000 | N1: 246000 | O1: 307000 | P1: 368000 | S1: Higher income band used as data not available for income band
A2: HEM 2023Q1 | C2: 25000 | D2: 37000 | E2: 49000 | F2: 61000 | G2: 74000 | H2: 98000 | I2: 123000 | J2: 147000 | K2: 172000 | L2: 196000 | M2: 246000 | N2: 307000 | O2: 368000 | P2: 999999999
C3: 1 | D3: 2 | E3: 3 | F3: 4 | G3: 5 | H3: 6 | I3: 7 | J3: 8 | K3: 9 | L3: 10 | M3: 11 | N3: 12 | O3: 13 | P3: 14
A4: Pepper - Proposed
A5: Single | B5: P-S | C5: =C25 -> 281.8896738 | D5: =D25 -> 297.876973 | E5: 312.2425383 | F5: 332.8163882 | G5: 370.7766028 | H5: 425.6515019 | I5: 501.4296898 | J5: 573.1372316 | K5: 659.5228423 | L5: 704.7491733 | M5: 748.2613652 | N5: 870.3383232 | O5: 987.5418334 | P5: 1031.75196
A6: Couple | B6: P-C | C6: =D6 -> 553.2836837 | D6: =D20 -> 553.2836837 | E6: 567.6594413 | F6: 588.2479079 | G6: 626.2350868 | H6: 681.1490085 | I6: 756.9810332 | J6: 828.739474 | K6: 915.1865124 | L6: 960.4449562 | M6: 1003.988043 | N6: 1126.151749 | O6: 1243.438472 | P6: 1287.68008
A7: Single parent with 1 child (per child) | B7: P-SD1 | C7: =D7 -> 100.3145764 | D7: =IF(D26-D25<0,0,D26-D25) -> 100.3145764 | E7: 100.3133224 | F7: 100.3115957 | G7: 100.3083105 | H7: 100.3036442 | I7: 100.2971408 | J7: 100.2909496 | K7: 100.2835646 | L7: 100.2797252 | M7: 100.2759596 | N7: 100.2655157 | O7: 100.2554163 | P7: 100.2517006
A8: Single parent with 2 children (per child) | B8: P-SD2 | C8: 106.3272636 | D8: =IF(D27-D25<0,0,D27-D25)/2 -> 106.3272636 | E8: 106.3441246 | F8: 106.3682559 | G8: 106.4127776 | H8: 106.4771409 | I8: 106.5660219 | J8: 106.6501056 | K8: 106.7514556 | L8: 106.8045113 | M8: 106.855538 | N8: 106.9986958 | O8: 107.1361742 | P8: 107.1880288
A9: Single parent with 3 children (per child) | B9: P-SD3 | C9: 108.3543921 | D9: =E9 -> 108.3543921 | E9: =IF(E28-E25<0,0,E28-E25)/3 -> 108.3543921 | F9: 108.3871426 | G9: 108.4475999 | H9: 108.5349731 | I9: 108.655649 | J9: 108.7698242 | K9: 108.9074193 | L9: 108.9794399 | M9: 109.0487308 | N9: 109.2430892 | O9: 109.4297602 | P9: 109.5001381
A10: Single parent with 4 or more children (per child) | B10: P-SD4+ | C10: 108.3543921 | D10: 108.3543921 | E10: =IF(E28-E25<0,0,E28-E25)/3 -> 108.3543921 | F10: 108.3871426 | G10: 108.4475999 | H10: 108.5349731 | I10: 108.655649 | J10: 108.7698242 | K10: 108.9074193 | L10: 108.9794399 | M10: 109.0487308 | N10: 109.2430892 | O10: 109.4297602 | P10: 109.5001381
A11: Couple with 1 child (per child) | B11: P-CD1 | C11: 86.74810811 | D11: 86.74810811 | E11: =IF(E21-E20<0,0,E21-E20) -> 86.74810811 | F11: 86.82040324 | G11: 86.95380207 | H11: 87.146583 | I11: 87.41289922 | J11: 87.66483782 | K11: 87.96839128 | L11: 88.12731351 | M11: 88.28023075 | N11: 88.70918271 | O11: 89.12102781 | P11: 89.2763795
A12: Couple with 2 children (per child) | B12: P-CD2 | C12: 79.45172682 | D12: 79.45172682 | E12: =IF(E22-E20<0,0,E22-E20)/2 -> 79.45172682 | F12: 79.44279217 | G12: 79.42630712 | H12: 79.40245817 | I12: 79.36954982 | J12: 79.33842755 | K12: 79.30087608 | L12: 79.28127214 | M12: 79.26236687 | N12: 79.20932481 | O12: 79.15846321 | P12: 79.13922737
A13: Couple with 3 children (per child) | B13: P-CD3 | C13: 72.49723948 | D13: 72.49723948 | E13: =F13 -> 72.49723948 | F13: =IF(F23-F20<0,0,F23-F20)/3 -> 72.49723948 | G13: 72.59069322 | H13: 72.72577236 | I13: 72.91232355 | J13: 73.08886578 | K13: 73.30150593 | L13: 73.41287507 | M13: 73.51998745 | N13: 73.82049883 | O13: 74.10904328 | P13: 74.2178802
A14: Couple with 4 or more children (per child) | B14: P-CD4+ | C14: =D14 -> 72.49723948 | D14: =E14 -> 72.49723948 | E14: =F14 -> 72.49723948 | F14: =IF(F23-F20<0,0,F23-F20)/3 -> 72.49723948 | G14: 72.59069322 | H14: 72.72577236 | I14: 72.91232355 | J14: 73.08886578 | K14: 73.30150593 | L14: 73.41287507 | M14: 73.51998745 | N14: 73.82049883 | O14: 74.10904328 | P14: 74.2178802
C16: 1 | D16: 2 | E16: 3 | F16: 4 | G16: 5 | H16: 6 | I16: 7 | J16: 8 | K16: 9 | L16: 10 | M16: 11 | N16: 12 | O16: 13 | P16: 14
C17: 25000 | D17: 25000 | E17: 37000 | F17: 49000 | G17: 61000 | H17: 74000 | I17: 98000 | J17: 123000 | K17: 147000 | L17: 172000 | M17: 196000 | N17: 246000 | O17: 307000 | P17: 368000
C18: or less | D18: to | E18: to | F18: to | G18: to | H18: to | I18: to | J18: to | K18: to | L18: to | M18: to | N18: to | O18: to | P18: to
A19: Australia | D19: 37000 | E19: 49000 | F19: 61000 | G19: 74000 | H19: 98000 | I19: 123000 | J19: 147000 | K19: 172000 | L19: 196000 | M19: 246000 | N19: 307000 | O19: 368000 | P19: 614000
A20: Couple | C20: 0 | D20: 553.2836837 | E20: 567.6594413 | F20: 588.2479079 | G20: 626.2350868 | H20: 681.1490085 | I20: 756.9810332 | J20: 828.739474 | K20: 915.1865124 | L20: 960.4449562 | M20: 1003.988043 | N20: 1126.151749 | O20: 1243.438472 | P20: 1287.68008
A21: Couple with 1 child | C21: 0 | D21: 0 | E21: 654.4075494 | F21: 675.0683112 | G21: 713.1888889 | H21: 768.2955915 | I21: 844.3939324 | J21: 916.4043118 | K21: 1003.154904 | L21: 1048.57227 | M21: 1092.268274 | N21: 1214.860932 | O21: 1332.5595 | P21: 1376.95646
A22: Couple with 2 children | C22: 0 | D22: 0 | E22: 726.5628949 | F22: 747.1334923 | G22: 785.0877011 | H22: 839.9539249 | I22: 915.7201328 | J22: 987.4163291 | K22: 1073.788265 | L22: 1119.007501 | M22: 1162.512777 | N22: 1284.570399 | O22: 1401.755398 | P22: 1445.958535
A23: Couple with 3 or more children | C23: 0 | D23: 0 | E23: 0 | F23: 805.7396264 | G23: 844.0071665 | H23: 899.3263256 | I23: 975.7180038 | J23: 1048.006071 | K23: 1135.09103 | L23: 1180.683581 | M23: 1224.548005 | N23: 1347.613246 | O23: 1465.765602 | P23: 1510.333721
A25: Single person | C25: 281.8896738 | D25: 297.876973 | E25: 312.2425383 | F25: 332.8163882 | G25: 370.7766028 | H25: 425.6515019 | I25: 501.4296898 | J25: 573.1372316 | K25: 659.5228423 | L25: 704.7491733 | M25: 748.2613652 | N25: 870.3383232 | O25: 987.5418334 | P25: 1031.75196
A26: Single parent with 1 child | C26: 0 | D26: 398.1915494 | E26: 412.5558607 | F26: 433.127984 | G26: 471.0849133 | H26: 525.9551462 | I26: 601.7268306 | J26: 673.4281813 | K26: 759.8064069 | L26: 805.0288985 | M26: 848.5373248 | N26: 970.6038389 | O26: 1087.79725 | P26: 1132.00366
A27: Single parent with 2 children | C27: 0 | D27: 510.5315003 | E27: 524.9307876 | F27: 545.5529001 | G27: 583.6021579 | H27: 638.6057837 | I27: 714.5617337 | J27: 786.4374427 | K27: 873.0257536 | L27: 918.3581959 | M27: 961.9724412 | N27: 1084.335715 | O27: 1201.814182 | P27: 1246.128017
A28: Single parent with 3 or more children | C28: 0 | D28: 0 | E28: 637.3057145 | F28: 657.9778162 | G28: 696.1194025 | H28: 751.2564213 | I28: 827.3966368 | J28: 899.4467042 | K28: 986.2451004 | L28: 1031.687493 | M28: 1075.407558 | N28: 1198.067591 | O28: 1315.831114 | P28: 1360.252374
A36: Comparison to prior Benchmark version
A38: HEM 2022Q4
C40: 24000 | D40: 24000 | E40: 36000 | F40: 48000 | G40: 61000 | H40: 73000 | I40: 97000 | J40: 121000 | K40: 145000 | L40: 170000 | M40: 194000 | N40: 242000 | O40: 303000 | P40: 363000
C41: or less | D41: to | E41: to | F41: to | G41: to | H41: to | I41: to | J41: to | K41: to | L41: to | M41: to | N41: to | O41: to | P41: to
A42: Australia | D42: 36000 | E42: 48000 | F42: 61000 | G42: 73000 | H42: 97000 | I42: 121000 | J42: 145000 | K42: 170000 | L42: 194000 | M42: 242000 | N42: 303000 | O42: 363000 | P42: 606000
A43: Couple | C43: 0 | D43: 544.1090362 | E43: 559.5517471 | F43: 580.1758541 | G43: 615.9932202 | H43: 670.9641432 | I43: 745.9330627 | J43: 815.1592805 | K43: 905.7058413 | L43: 943.4339923 | M43: 991.3344736 | N43: 1112.235962 | O43: 1224.005727 | P43: 1276.443891
A44: Couple with 1 child | C44: 0 | D44: 0 | E44: 643.6546682 | F44: 664.2666377 | G44: 700.0629248 | H44: 755.001506 | I44: 829.9262869 | J44: 899.1117642 | K44: 989.6050739 | L44: 1027.31104 | M44: 1075.183221 | N44: 1196.013667 | O44: 1307.717654 | P44: 1360.124885
A45: Couple with 2 children | C45: 0 | D45: 0 | E45: 713.5206642 | F45: 734.1025403 | G45: 769.8464649 | H45: 824.7047384 | I45: 899.5200332 | J45: 968.6043772 | K45: 1058.965351 | L45: 1096.616255 | M45: 1144.418495 | N45: 1265.072278 | O45: 1376.612979 | P45: 1428.943602
A46: Couple with 3 or more children | C46: 0 | D46: 0 | E46: 0 | F46: 792.0299241 | G46: 827.7694623 | H46: 882.6210403 | I46: 957.4270807 | J46: 1026.502947 | K46: 1116.852887 | L46: 1154.499115 | M46: 1202.29547 | N46: 1322.934447 | O46: 1434.46146 | P46: 1486.785661
A48: Single person | C48: 277.2711523 | D48: 291.3604434 | E48: 306.7605773 | F48: 327.3278294 | G48: 363.046401 | H48: 417.8657662 | I48: 492.627958 | J48: 561.6632923 | K48: 651.9601993 | L48: 689.5843557 | M48: 737.3526653 | N48: 857.9208542 | O48: 969.3824081 | P48: 1021.67598
A49: Single parent with 1 child | C49: 0 | D49: 394.3567771 | E49: 409.867348 | F49: 430.5821635 | G49: 466.55696 | H49: 521.7695938 | I49: 597.0681061 | J49: 666.5986328 | K49: 757.5433088 | L49: 795.4373645 | M49: 843.5483431 | N49: 964.9814539 | O49: 1077.242603 | P49: 1129.911232
A50: Single parent with 2 children | C50: 0 | D50: 500.1577341 | E50: 515.6897863 | F50: 536.4332261 | G50: 572.4577494 | H50: 627.7467111 | I50: 703.149251 | J50: 772.7759429 | K50: 863.846329 | L50: 901.7927645 | M50: 949.9702454 | N50: 1071.571191 | O50: 1183.987552 | P50: 1236.728984
A51: Single parent with 3 or more children | C51: 0 | D51: 0 | E51: 621.5122245 | F51: 642.2842886 | G51: 678.3585388 | H51: 733.7238285 | I51: 809.2303958 | J51: 878.9532531 | K51: 970.1493492 | L51: 1008.148164 | M51: 1056.392148 | N51: 1178.160928 | O51: 1290.732501 | P51: 1343.546735
A53: CHANGE
A54: Couple | D54: =D20-D43 -> 9.174647494 | E54: 8.107694219 | F54: 8.072053871 | G54: 10.24186666 | H54: 10.1848653 | I54: 11.04797048 | J54: 13.58019349 | K54: 9.480671094 | L54: 17.0109639 | M54: 12.65356949 | N54: 13.91578747 | O54: 19.43274532 | P54: 11.23618945
A55: Couple with 1 child | E55: 10.75288119 | F55: 10.80167351 | G55: 13.1259641 | H55: 13.29408558 | I55: 14.46764546 | J55: 17.29254757 | K55: 13.54982974 | L55: 21.26122994 | M55: 17.08505281 | N55: 18.84726478 | O55: 24.84184563 | P55: 16.83157531
A56: Couple with 2 children | E56: 13.04223071 | F56: 13.03095196 | G56: 15.24123618 | H56: 15.24918646 | I56: =I22-I45 -> 16.20009964 | J56: 18.81195191 | K56: 14.82291309 | L56: 22.39124572 | M56: 18.09428236 | N56: 19.49812127 | O56: 25.14241942 | P56: 17.01493309
A57: Couple with 3 or more children | F57: 13.70970223 | G57: 16.23770422 | H57: 16.7052853 | I57: 18.29092316 | J57: 21.50312455 | K57: 18.23814312 | L57: 26.18446641 | M57: 22.25253522 | N57: 24.67879877 | O57: 31.30414154 | P57: 23.54805958
A59: Single person | C59: =C25-C48 -> 4.618521423 | D59: 6.516529606 | E59: 5.481961003 | F59: 5.488558886 | G59: 7.730201769 | H59: 7.785735739 | I59: 8.801731764 | J59: 11.47393938 | K59: 7.562643031 | L59: 15.16481761 | M59: 10.90869991 | N59: 12.41746901 | O59: 18.15942533 | P59: 10.07597948
A60: Single parent with 1 child | D60: 3.8347723 | E60: 2.688512706 | F60: 2.545820456 | G60: 4.52795327 | H60: 4.185552378 | I60: 4.658724461 | J60: 6.829548453 | K60: 2.263098056 | L60: 9.591534005 | M60: 4.988981698 | N60: 5.62238501 | O60: 10.55464705 | P60: 2.09242797
A61: Single parent with 2 children | D61: 10.37376623 | E61: 9.241001313 | F61: 9.119674023 | G61: 11.14440851 | H61: 10.85907261 | I61: 11.41248271 | J61: 13.6614998 | K61: 9.179424615 | L61: 16.56543135 | M61: 12.00219582 | N61: 12.76452385 | O61: 17.82662999 | P61: 9.399033411
A62: Single parent with 3 or more children | E62: 15.79348992 | F62: 15.69352759 | G62: 17.76086375 | H62: 17.53259284 | I62: 18.16624097 | J62: 20.49345116 | K62: 16.09575117 | L62: 23.5393287 | M62: 19.01540995 | N62: 19.90666269 | O62: 25.09861293 | P62: 16.70563885

Sheet Validation (hidden)
A1: Residential | B1: Member 1 | C1: Member 2 | D1: Member 3 | E1: Member 4 | F1: Member 5 | G1: Member 6 | J1: Valid Status | M1: Validation Rules | N1: Remarks
A2: Member 1 | B2: =IF(AND(B$1<>$A2,HLOOKUP($A2,SMSF!$E$55:$O$56,2,FALSE)="Individual (Couple)",SMSF!E$56="Individual (Couple)"),$A2) -> FALSE | C2: =IF(AND(C$1<>$A2,HLOOKUP($A2,SMSF!$E$55:$O$56,2,FALSE)="Individual (Couple)",SMSF!G$56="Individual (Couple)"),$A2) -> FALSE | D2: =IF(AND(D$1<>$A2,HLOOKUP($A2,SMSF!$E$55:$O$56,2,FALSE)="Individual (Couple)",SMSF!I$56="Individual (Couple)"),$A2) -> FALSE | E2: =IF(AND(E$1<>$A2,HLOOKUP($A2,SMSF!$E$55:$O$56,2,FALSE)="Individual (Couple)",SMSF!K$56="Individual (Couple)"),$A2) -> FALSE | F2: =IF(AND(F$1<>$A2,HLOOKUP($A2,SMSF!$E$55:$O$56,2,FALSE)="Individual (Couple)",SMSF!M$56="Individual (Couple)"),$A2) -> FALSE | G2: =IF(AND(G$1<>$A2,HLOOKUP($A2,SMSF!$E$55:$O$56,2,FALSE)="Individual (Couple)",SMSF!O$56="Individual (Couple)"),$A2) -> FALSE | J2: Individual (Single) | M2: =SMSF!E20 ->  | N2: =IF(M2="","Valid","Invalid") -> Valid
A3: Member 2 | B3: =IF(AND(B$1<>$A3,HLOOKUP($A3,SMSF!$E$55:$O$56,2,FALSE)="Individual (Couple)",SMSF!E$56="Individual (Couple)"),$A3) -> FALSE | C3: =IF(AND(C$1<>$A3,HLOOKUP($A3,SMSF!$E$55:$O$56,2,FALSE)="Individual (Couple)",SMSF!G$56="Individual (Couple)"),$A3) -> FALSE | D3: =IF(AND(D$1<>$A3,HLOOKUP($A3,SMSF!$E$55:$O$56,2,FALSE)="Individual (Couple)",SMSF!I$56="Individual (Couple)"),$A3) -> FALSE | E3: =IF(AND(E$1<>$A3,HLOOKUP($A3,SMSF!$E$55:$O$56,2,FALSE)="Individual (Couple)",SMSF!K$56="Individual (Couple)"),$A3) -> FALSE | F3: =IF(AND(F$1<>$A3,HLOOKUP($A3,SMSF!$E$55:$O$56,2,FALSE)="Individual (Couple)",SMSF!M$56="Individual (Couple)"),$A3) -> FALSE | G3: =IF(AND(G$1<>$A3,HLOOKUP($A3,SMSF!$E$55:$O$56,2,FALSE)="Individual (Couple)",SMSF!O$56="Individual (Couple)"),$A3) -> FALSE | J3: Individual (Couple) | M3: =SMSF!C23 ->  | N3: =IF(M3="","Valid","Invalid") -> Valid
A4: Member 3 | B4: =IF(AND(B$1<>$A4,HLOOKUP($A4,SMSF!$E$55:$O$56,2,FALSE)="Individual (Couple)",SMSF!E$56="Individual (Couple)"),$A4) -> FALSE | C4: =IF(AND(C$1<>$A4,HLOOKUP($A4,SMSF!$E$55:$O$56,2,FALSE)="Individual (Couple)",SMSF!G$56="Individual (Couple)"),$A4) -> FALSE | D4: =IF(AND(D$1<>$A4,HLOOKUP($A4,SMSF!$E$55:$O$56,2,FALSE)="Individual (Couple)",SMSF!I$56="Individual (Couple)"),$A4) -> FALSE | E4: =IF(AND(E$1<>$A4,HLOOKUP($A4,SMSF!$E$55:$O$56,2,FALSE)="Individual (Couple)",SMSF!K$56="Individual (Couple)"),$A4) -> FALSE | F4: =IF(AND(F$1<>$A4,HLOOKUP($A4,SMSF!$E$55:$O$56,2,FALSE)="Individual (Couple)",SMSF!M$56="Individual (Couple)"),$A4) -> FALSE | G4: =IF(AND(G$1<>$A4,HLOOKUP($A4,SMSF!$E$55:$O$56,2,FALSE)="Individual (Couple)",SMSF!O$56="Individual (Couple)"),$A4) -> FALSE | M4: =SMSF!E23 -> 0 | N4: =IF(M4="","Valid","Invalid") -> Invalid
A5: Member 4 | B5: =IF(AND(B$1<>$A5,HLOOKUP($A5,SMSF!$E$55:$O$56,2,FALSE)="Individual (Couple)",SMSF!E$56="Individual (Couple)"),$A5) -> FALSE | C5: =IF(AND(C$1<>$A5,HLOOKUP($A5,SMSF!$E$55:$O$56,2,FALSE)="Individual (Couple)",SMSF!G$56="Individual (Couple)"),$A5) -> FALSE | D5: =IF(AND(D$1<>$A5,HLOOKUP($A5,SMSF!$E$55:$O$56,2,FALSE)="Individual (Couple)",SMSF!I$56="Individual (Couple)"),$A5) -> FALSE | E5: =IF(AND(E$1<>$A5,HLOOKUP($A5,SMSF!$E$55:$O$56,2,FALSE)="Individual (Couple)",SMSF!K$56="Individual (Couple)"),$A5) -> FALSE | F5: =IF(AND(F$1<>$A5,HLOOKUP($A5,SMSF!$E$55:$O$56,2,FALSE)="Individual (Couple)",SMSF!M$56="Individual (Couple)"),$A5) -> FALSE | G5: =IF(AND(G$1<>$A5,HLOOKUP($A5,SMSF!$E$55:$O$56,2,FALSE)="Individual (Couple)",SMSF!O$56="Individual (Couple)"),$A5) -> FALSE | M5: =SMSF!C25 ->  | N5: =IF(M5="","Valid","Invalid") -> Valid
A6: Member 5 | B6: =IF(AND(B$1<>$A6,HLOOKUP($A6,SMSF!$E$55:$O$56,2,FALSE)="Individual (Couple)",SMSF!E$56="Individual (Couple)"),$A6) -> FALSE | C6: =IF(AND(C$1<>$A6,HLOOKUP($A6,SMSF!$E$55:$O$56,2,FALSE)="Individual (Couple)",SMSF!G$56="Individual (Couple)"),$A6) -> FALSE | D6: =IF(AND(D$1<>$A6,HLOOKUP($A6,SMSF!$E$55:$O$56,2,FALSE)="Individual (Couple)",SMSF!I$56="Individual (Couple)"),$A6) -> FALSE | E6: =IF(AND(E$1<>$A6,HLOOKUP($A6,SMSF!$E$55:$O$56,2,FALSE)="Individual (Couple)",SMSF!K$56="Individual (Couple)"),$A6) -> FALSE | F6: =IF(AND(F$1<>$A6,HLOOKUP($A6,SMSF!$E$55:$O$56,2,FALSE)="Individual (Couple)",SMSF!M$56="Individual (Couple)"),$A6) -> FALSE | G6: =IF(AND(G$1<>$A6,HLOOKUP($A6,SMSF!$E$55:$O$56,2,FALSE)="Individual (Couple)",SMSF!O$56="Individual (Couple)"),$A6) -> FALSE | M6: =SMSF!E25 ->  | N6: =IF(M6="","Valid","Invalid") -> Valid
A7: Member 6 | B7: =IF(AND(B$1<>$A7,HLOOKUP($A7,SMSF!$E$55:$O$56,2,FALSE)="Individual (Couple)",SMSF!E$56="Individual (Couple)"),$A7) -> FALSE | C7: =IF(AND(C$1<>$A7,HLOOKUP($A7,SMSF!$E$55:$O$56,2,FALSE)="Individual (Couple)",SMSF!G$56="Individual (Couple)"),$A7) -> FALSE | D7: =IF(AND(D$1<>$A7,HLOOKUP($A7,SMSF!$E$55:$O$56,2,FALSE)="Individual (Couple)",SMSF!I$56="Individual (Couple)"),$A7) -> FALSE | E7: =IF(AND(E$1<>$A7,HLOOKUP($A7,SMSF!$E$55:$O$56,2,FALSE)="Individual (Couple)",SMSF!K$56="Individual (Couple)"),$A7) -> FALSE | F7: =IF(AND(F$1<>$A7,HLOOKUP($A7,SMSF!$E$55:$O$56,2,FALSE)="Individual (Couple)",SMSF!M$56="Individual (Couple)"),$A7) -> FALSE | G7: =IF(AND(G$1<>$A7,HLOOKUP($A7,SMSF!$E$55:$O$56,2,FALSE)="Individual (Couple)",SMSF!O$56="Individual (Couple)"),$A7) -> FALSE | J7: Valid Status 1
J8: Individual (Single)
B9: =IF(MID(SMSF!E56,13,6)<>"Couple","","N/A") ->  | C9: =IF(MID(SMSF!G56,13,6)<>"Couple","","N/A") ->  | D9: =IF(MID(SMSF!I56,13,6)<>"Couple","","N/A") ->  | E9: =IF(MID(SMSF!K56,13,6)<>"Couple","","N/A") ->  | F9: =IF(MID(SMSF!M56,13,6)<>"Couple","","N/A") ->  | G9: =IF(MID(SMSF!O56,13,6)<>"Couple","","N/A") ->  | J9: Individual (Couple)
B10: =IF(MID(SMSF!E56,13,6)<>"Couple","","Non-loan party") ->  | C10: =IF(MID(SMSF!G56,13,6)<>"Couple","","Non-loan party") ->  | D10: =IF(MID(SMSF!I56,13,6)<>"Couple","","Non-loan party") ->  | E10: =IF(MID(SMSF!K56,13,6)<>"Couple","","Non-loan party") ->  | F10: =IF(MID(SMSF!M56,13,6)<>"Couple","","Non-loan party") ->  | G10: =IF(MID(SMSF!O56,13,6)<>"Couple","","Non-loan party") -> 
B11: =IFERROR(INDEX(B$2:B$7,SMALL(IF(ISTEXT(B$2:B$7),ROW(B$1:B$6),""), ROW(B2)-1)),"-") -> - | C11: =IFERROR(INDEX(C$2:C$7,SMALL(IF(ISTEXT(C$2:C$7),ROW(C$1:C$6),""), ROW(C2)-1)),"-") -> - | D11: =IFERROR(INDEX(D$2:D$7,SMALL(IF(ISTEXT(D$2:D$7),ROW(D$1:D$6),""), ROW(D2)-1)),"-") -> - | E11: =IFERROR(INDEX(E$2:E$7,SMALL(IF(ISTEXT(E$2:E$7),ROW(E$1:E$6),""), ROW(E2)-1)),"-") -> - | F11: =IFERROR(INDEX(F$2:F$7,SMALL(IF(ISTEXT(F$2:F$7),ROW(F$1:F$6),""), ROW(F2)-1)),"-") -> - | G11: =IFERROR(INDEX(G$2:G$7,SMALL(IF(ISTEXT(G$2:G$7),ROW(G$1:G$6),""), ROW(G2)-1)),"-") -> -
B12: =IFERROR(INDEX(B$2:B$7,SMALL(IF(ISTEXT(B$2:B$7),ROW(B$1:B$6),""), ROW(B3)-1)),"-") -> - | C12: =IFERROR(INDEX(C$2:C$7,SMALL(IF(ISTEXT(C$2:C$7),ROW(C$1:C$6),""), ROW(C3)-1)),"-") -> - | D12: =IFERROR(INDEX(D$2:D$7,SMALL(IF(ISTEXT(D$2:D$7),ROW(D$1:D$6),""), ROW(D3)-1)),"-") -> - | E12: =IFERROR(INDEX(E$2:E$7,SMALL(IF(ISTEXT(E$2:E$7),ROW(E$1:E$6),""), ROW(E3)-1)),"-") -> - | F12: =IFERROR(INDEX(F$2:F$7,SMALL(IF(ISTEXT(F$2:F$7),ROW(F$1:F$6),""), ROW(F3)-1)),"-") -> - | G12: =IFERROR(INDEX(G$2:G$7,SMALL(IF(ISTEXT(G$2:G$7),ROW(G$1:G$6),""), ROW(G3)-1)),"-") -> - | J12: Valid Status 2
B13: =IFERROR(INDEX(B$2:B$7,SMALL(IF(ISTEXT(B$2:B$7),ROW(B$1:B$6),""), ROW(B4)-1)),"-") -> - | C13: =IFERROR(INDEX(C$2:C$7,SMALL(IF(ISTEXT(C$2:C$7),ROW(C$1:C$6),""), ROW(C4)-1)),"-") -> - | D13: =IFERROR(INDEX(D$2:D$7,SMALL(IF(ISTEXT(D$2:D$7),ROW(D$1:D$6),""), ROW(D4)-1)),"-") -> - | E13: =IFERROR(INDEX(E$2:E$7,SMALL(IF(ISTEXT(E$2:E$7),ROW(E$1:E$6),""), ROW(E4)-1)),"-") -> - | F13: =IFERROR(INDEX(F$2:F$7,SMALL(IF(ISTEXT(F$2:F$7),ROW(F$1:F$6),""), ROW(F4)-1)),"-") -> - | G13: =IFERROR(INDEX(G$2:G$7,SMALL(IF(ISTEXT(G$2:G$7),ROW(G$1:G$6),""), ROW(G4)-1)),"-") -> - | J13: Individual (Single)
B14: =IFERROR(INDEX(B$2:B$7,SMALL(IF(ISTEXT(B$2:B$7),ROW(B$1:B$6),""), ROW(B5)-1)),"-") -> - | C14: =IFERROR(INDEX(C$2:C$7,SMALL(IF(ISTEXT(C$2:C$7),ROW(C$1:C$6),""), ROW(C5)-1)),"-") -> - | D14: =IFERROR(INDEX(D$2:D$7,SMALL(IF(ISTEXT(D$2:D$7),ROW(D$1:D$6),""), ROW(D5)-1)),"-") -> - | E14: =IFERROR(INDEX(E$2:E$7,SMALL(IF(ISTEXT(E$2:E$7),ROW(E$1:E$6),""), ROW(E5)-1)),"-") -> - | F14: =IFERROR(INDEX(F$2:F$7,SMALL(IF(ISTEXT(F$2:F$7),ROW(F$1:F$6),""), ROW(F5)-1)),"-") -> - | G14: =IFERROR(INDEX(G$2:G$7,SMALL(IF(ISTEXT(G$2:G$7),ROW(G$1:G$6),""), ROW(G5)-1)),"-") -> - | J14: Individual (Couple)
B15: =IFERROR(INDEX(B$2:B$7,SMALL(IF(ISTEXT(B$2:B$7),ROW(B$1:B$6),""), ROW(B6)-1)),"-") -> - | C15: =IFERROR(INDEX(C$2:C$7,SMALL(IF(ISTEXT(C$2:C$7),ROW(C$1:C$6),""), ROW(C6)-1)),"-") -> - | D15: =IFERROR(INDEX(D$2:D$7,SMALL(IF(ISTEXT(D$2:D$7),ROW(D$1:D$6),""), ROW(D6)-1)),"-") -> - | E15: =IFERROR(INDEX(E$2:E$7,SMALL(IF(ISTEXT(E$2:E$7),ROW(E$1:E$6),""), ROW(E6)-1)),"-") -> - | F15: =IFERROR(INDEX(F$2:F$7,SMALL(IF(ISTEXT(F$2:F$7),ROW(F$1:F$6),""), ROW(F6)-1)),"-") -> - | G15: =IFERROR(INDEX(G$2:G$7,SMALL(IF(ISTEXT(G$2:G$7),ROW(G$1:G$6),""), ROW(G6)-1)),"-") -> -
A17: Do not delete this formula | B17: =IF(RIGHT(SMSF!E57,1)="2",AvailableSurplusForAdditionalVoluntaryConcessionContributionsM1+AvailableSurplusForAdditionalVoluntaryNonConcessionContributionsM1+AvailableSurplusForAdditionalVoluntaryConcessionContributionsM2+AvailableSurplusForAdditionalVoluntaryNonConcessionContributionsM2,IF(RIGHT(SMSF!E57,1)="3",AvailableSurplusForAdditionalVoluntaryConcessionContributionsM1+AvailableSurplusForAdditionalVoluntaryNonConcessionContributionsM1+AvailableSurplusForAdditionalVoluntaryConcessionContributionsM3+AvailableSurplusForAdditionalVoluntaryNonConcessionContributionsM3,IF(RIGHT(SMSF!E57,1)="4",AvailableSurplusForAdditionalVoluntaryConcessionContributionsM1+AvailableSurplusForAdditionalVoluntaryNonConcessionContributionsM1+AvailableSurplusForAdditionalVoluntaryConcessionContributionsM4+AvailableSurplusForAdditionalVoluntaryNonConcessionContributionsM4,IF(RIGHT(SMSF!E57,1)="5",AvailableSurplusForAdditionalVoluntaryConcessionContributionsM1+AvailableSurplusForAdditionalVoluntaryNonConcessionContributionsM1+AvailableSurplusForAdditionalVoluntaryConcessionContributionsM5+AvailableSurplusForAdditionalVoluntaryNonConcessionContributionsM5,IF(RIGHT(SMSF!E57,1)="6",AvailableSurplusForAdditionalVoluntaryConcessionContributionsM1+AvailableSurplusForAdditionalVoluntaryNonConcessionContributionsM1+AvailableSurplusForAdditionalVoluntaryConcessionContributionsM6+AvailableSurplusForAdditionalVoluntaryNonConcessionContributionsM6,0))))) -> 0 | C17: =IF(RIGHT(SMSF!G57,1)="3",AvailableSurplusForAdditionalVoluntaryConcessionContributionsM1+AvailableSurplusForAdditionalVoluntaryNonConcessionContributionsM1+AvailableSurplusForAdditionalVoluntaryConcessionContributionsM3+AvailableSurplusForAdditionalVoluntaryNonConcessionContributionsM3,IF(RIGHT(SMSF!G57,1)="4",AvailableSurplusForAdditionalVoluntaryConcessionContributionsM1+AvailableSurplusForAdditionalVoluntaryNonConcessionContributionsM1+AvailableSurplusForAdditionalVoluntaryConcessionContributionsM4+AvailableSurplusForAdditionalVoluntaryNonConcessionContributionsM4,IF(RIGHT(SMSF!G57,1)="5",AvailableSurplusForAdditionalVoluntaryConcessionContributionsM1+AvailableSurplusForAdditionalVoluntaryNonConcessionContributionsM1+AvailableSurplusForAdditionalVoluntaryConcessionContributionsM5+AvailableSurplusForAdditionalVoluntaryNonConcessionContributionsM5,IF(RIGHT(SMSF!G57,1)="6",AvailableSurplusForAdditionalVoluntaryConcessionContributionsM1+AvailableSurplusForAdditionalVoluntaryNonConcessionContributionsM1+AvailableSurplusForAdditionalVoluntaryConcessionContributionsM6+AvailableSurplusForAdditionalVoluntaryNonConcessionContributionsM6,0)))) -> 0 | D17: =IF(RIGHT(SMSF!I57,1)="4",AvailableSurplusForAdditionalVoluntaryConcessionContributionsM1+AvailableSurplusForAdditionalVoluntaryNonConcessionContributionsM1+AvailableSurplusForAdditionalVoluntaryConcessionContributionsM4+AvailableSurplusForAdditionalVoluntaryNonConcessionContributionsM4,IF(RIGHT(SMSF!I57,1)="5",AvailableSurplusForAdditionalVoluntaryConcessionContributionsM1+AvailableSurplusForAdditionalVoluntaryNonConcessionContributionsM1+AvailableSurplusForAdditionalVoluntaryConcessionContributionsM5+AvailableSurplusForAdditionalVoluntaryNonConcessionContributionsM5,IF(RIGHT(SMSF!I57,1)="6",AvailableSurplusForAdditionalVoluntaryConcessionContributionsM1+AvailableSurplusForAdditionalVoluntaryNonConcessionContributionsM1+AvailableSurplusForAdditionalVoluntaryConcessionContributionsM6+AvailableSurplusForAdditionalVoluntaryNonConcessionContributionsM6,0))) -> 0 | E17: =IF(RIGHT(SMSF!K57,1)="5",AvailableSurplusForAdditionalVoluntaryConcessionContributionsM1+AvailableSurplusForAdditionalVoluntaryNonConcessionContributionsM1+AvailableSurplusForAdditionalVoluntaryConcessionContributionsM5+AvailableSurplusForAdditionalVoluntaryNonConcessionContributionsM5,IF(RIGHT(SMSF!K57,1)="6",AvailableSurplusForAdditionalVoluntaryConcessionContributionsM1+AvailableSurplusForAdditionalVoluntaryNonConcessionContributionsM1+AvailableSurplusForAdditionalVoluntaryConcessionContributionsM6+AvailableSurplusForAdditionalVoluntaryNonConcessionContributionsM6,0)) -> 0 | F17: =IF(RIGHT(SMSF!M57,1)="6",AvailableSurplusForAdditionalVoluntaryConcessionContributionsM1+AvailableSurplusForAdditionalVoluntaryNonConcessionContributionsM1+AvailableSurplusForAdditionalVoluntaryConcessionContributionsM6+AvailableSurplusForAdditionalVoluntaryNonConcessionContributionsM6,0) -> 0 | G17: 0 | J17: Valid Status 3
J18: Individual (Single)
A19: Dependents Lookup | J19: Individual (Couple)
A20: Dependents | B20: DependedntsCode
A21: 0 | B21: 1
A22: 1 | B22: 1 | J22: Valid Status 4
A23: 2 | B23: 2 | J23: Individual (Single)
A24: 3 | B24: 3 | J24: Individual (Couple)
A25: 4 | B25: 4+
J27: Valid Status 5
J28: Individual (Single)
J29: Individual (Couple)
J32: Valid Status 6
J33: Individual (Single)
J34: Individual (Couple)
B37: Don’t remove | C37: Don’t remove
A39: Servicability Calculator
B40: Member 1 | C40: Member 2 | D40: Member 3 | E40: Member 4 | F40: Member 5 | G40: Member 6
A41: Status
A42: Individual (Couple) With

Sheet Tax Table (hidden)
I2: This is the Tax Offset for Low income earners
I3: https://www.ato.gov.au/individuals/income-and-deductions/offsets-and-rebates/low-income-earners/
A4: Medicare Levy 2017 - 2018 | D4: 1 | E4: Tax offset for Low income earners
A5: Threshold | B5: Value | C5: Rate | E5: Thresholds | F5: Max Tax Offset
A6: Minimum for partial levy | B6: 21980 | C6: 0.1 | E6: 37500 | F6: 700
A7: Minimum for full levy | B7: 27475 | C7: 0.02
A9: Tax 2018-2019
A10: Tax Bracket Min | B10: Tax For Bracket | C10: Tax Rate | E10: Reduced By over 37000K | F10: 0.015
A11: 0 | B11: 0 | C11: 0
A12: 18200 | B12: 0 | C12: 0.19 | D12: 2 | E12: Tax offset for Low income earners
A13: 37000 | B13: =(A13-A12)*C12 -> 3572 | C13: 0.325 | E13: Thresholds | F13: Tax Offset $ | G13: Tax Offset%
A14: 90000 | B14: =(A13-A12)*C12+(A14-A13)*C13 -> 20797 | C14: 0.37 | E14: 0 | F14: 700
A15: 180000 | B15: =(A13-A12)*C12+(A14-A13)*C13+(A15-A14)*C14 -> 54097 | C15: 0.45 | E15: 37500 | F15: 700 | G15: -0.05
A16: 999999999 | B16: =B15 -> 54097 | C16: 0.45 | E16: 45000 | F16: 325 | G16: -0.015
E17: 66667 | F17: 0
A18: Tax 2020-2021 | E18: 999999999 | F18: 0
A19: Tax Bracket Min | B19: Tax For Bracket | C19: Tax Rate | I19: This is the Medicare levy reduction for low income earners
A20: 0 | B20: 0 | C20: 0 | I20: https://www.ato.gov.au/Individuals/Medicare-levy/Medicare-levy-reduction-for-low-income-earners/
A21: 18200 | B21: 0 | C21: 0.19
A22: 45000 | B22: =(A22-A21)*C21 -> 5092 | C22: 0.325
A23: 120000 | B23: =(A22-A21)*C21+(A23-A22)*C22 -> 29467 | C23: 0.37
A24: 180000 | B24: =(A22-A21)*C21+(A23-A22)*C22+(A24-A23)*C23 -> 51667 | C24: 0.45
A25: 999999999 | B25: =B24 -> 51667 | C25: 0.45

Sheet Inputs (hidden)
A1: Inputs
O2: Note: Please make changes in "Residential" Worksheet column K and L
A3: Baseline Assessment Rate | B3: 0.055 | H3: Owner occupied property utilities, rates & costs
A4: Assessment Loading | B4: 0.02 | H4: Rented property costs
A5: Credit Card Commitments | B5: 0.0382 | H5: Investment property utilities, rates & costs
A6: Workings for Negative Gearing | B6: 0.0604 | H6: Telephone, Internet, Pay TV & Media Streaming
A7: Other Mortgage Repayment Buffer | B7: 1.25 | H7: Groceries
A8: Rental Income Shading | B8: 0.8 | H8: Recreation & Entertainment
H9: Clothing & Personal Care
A10: Company Tax | B10: 0.25 | H10: Medical & Health
H11: Transport
A12: NumberOfWeeksInAYear | B12: 52 | H12: Education
A13: NumberOfMonthsInAYear | B13: 12
H14: Childcare
A15: Compulsary Superannuation Percentage | B15: 0.11 | H15: Insurance
A16: Concessional Contributions Capped Amount | B16: 27500
A17: Non Concessional Capped Amount | B17: 110000 | H17: Other Living Expenses
A18: MinimumAdministrationCost | B18: 1500
A19: Superannuation Tax | B19: 0.15
A21: Minimum SMSF DSCR | B21: 0.995
I26: Loan details
I29: Income | J29: Net Member Contributions | K29: PAYG Super Gaurantee Concessional (compulsory) Super (capped $27,500)
K30: PAYG Super Gaurantee Non-Concessional (compulsory) Super (capped $110,000)
A31: Allowable Government Allowance over Total Income Limitation | B31: 0.5 | K31: Non-PAYG?
K32: Gross income - tax - living expenses - debt repayments = Non-Concessional Additional Super (total non-concessional capped at $110,000)
J33: SMSF | K33: Rental income CRE (100% of net) Residential (80% of gross)
K34: Return on investments
K35: Less adminstration expenses (floor $2,500)
K36: Less debt expenses (mortgage + 25%)
I38: DSCR | J38: SMSF net income + Net Member Contributions / SMSF debt repayments
A39: Residenital
A40: Minimum Loan Term in Years | B40: 10
A41: Maximum Loan Term In years | B41: 40
A42: Maximum Loan Term In Years For Prime Loans | B42: 30
A44: Minimum Interest Only Loan term in Years | B44: 0
A45: Maximum Interest Only Loan term in Years | B45: 5

Sheet Version Control (hidden)
A1: Version | B1: Created date | C1: Date Effective | D1: Created By | E1: Approved By | F1: Change
A2: 1 | B2: 2023-05-29 | C2: 2023-06-05 | D2: Neil Culkin | E2: Neil Culkin | F2: First issuance
A3: 2 | B3: 2023-09-13 | C3: 2023-10-16 | D3: Neil Culkin Devika Dharapalam | E3: Neil Culkin | F3: 1. Compulsary Superannuation Percentage updated to 11% 2. Interest rate buffer reduced from 2.5% to 2% 3. Minimum DSCR reduced from 1.25% to 1% 4. Introducing Existing Concessional Contribution income that can be verified through SMSF financials and not requiring Member income & expense section to be completed 5. Updated row 89 "Total Commitments (annualised)" formula to take higher of HEM or DLE, then plus other commitments 6. Introduction of 5.5% floor rate 7. Low Income Earner tax offset updated 8. HEM updated to 2023Q1

Sheet Superannuation Assessment notes (hidden)
A1: UNDERWRITER NOTES- SMSF | C1: INSTRUCTIONS | D1: COMMENTARY
A2: Purpose | C2: If the purpose is for Cash out, Equity Release, Debt consolidation , Property Improvement or the Sole Purpose test is not met the application is to be DECLINED. | F2: Purchase O/O (Commercial Only) | G2: Prime FD 50% $3.0M | H2: Yes | I2: Retail | J2: CAT 1
A3: Product | C3: Product and LVR Bands | F3: Purchase Investment - Commercial | G3: Prime FD >50-65% $3.00M | H3: No | I3: Office | J3: CAT 2
A4: Loan Amount | C4: Loan Amount | F4: Refinance O/O ( Commercial Only) | G4: Prime FD >65-70% $3.00M | I4: Industrial | J4: CAT 3 (Max 60% LVR of $750K). Refer Instructions for CAT 3
A5: Global Exposure | C5: Total Loan Amount of all Pepper exposure held. If this is the only loan state "No other exposure held". Max aggregate exp $7.0M | F5: Refinance Investment- Commercial | G5: Prime FD >70-75% $ 2.50M | I5: Boarding House
A6: Funds to complete ( Purchase): Are FTC evidenced from SMSF transactional account. | C6: Funds to complete must be evidenced as being available in the members SMSF bank account. This to be evident prior to settlement. If not evident loan cannot proceed. | F6: Purchase Investment- Residential | G6: Prime FD >75-80% (Resi Only) $2.0M | I6: Rooming House
A7: Loan term. Interest Only Term | C7: Loan structure . Ie Total loan term and term of interest only | F7: Refinance Investment - Residential | G7: Near Prime FD 50% $3.0M | I7: Residential
A8: Is the SMSF a Complying Superannuation Fund.(Search the SMSF ABN) | C8: If answered NO application to be declined. Refer Super Fund ABN Look Up. https://superfundlookup.gov.au/ABN/View?id=65714394898. Reference Tax return or Trust deed dates and addresses. | G8: Near Prime FD >50-65% $3.00M
A9: Are Members related ? | C9: A member cannot be an employee of another member unless related. | G9: Near Prime FD >65-70% $3.00M
A10: Asset Class | C10: Description of asset class of security. Any other asset class not located in selection is unacceptable. | G10: Near Prime FD >70-75% $ 2.50M
A11: Has NG Security Tab been updated | C11: Update NG Security | G11: Near Prime FD >75-80% (Resi Only) $1.50M
A12: Is security a single acquirable asset | C12: If the asset asset is not a single acquirable asset the transaction is to be declined.
A13: Address | C13: Address of property being offered as security | G13: Residential | I13: Prime Lender- 6 months BBS
A14: Security Estimate: | C14: Security value amount used for LVR calculation. | G14: Commercial - | I14: Non Prime Lender - 12 mmonths BBS
A15: Location- CAT 1 2, or 3 | C15: What is the security Property location category? If CAT 3 maximum LVR is 60% or $750K ( NSW, VIC, QLD, TAS/ACT) whichever is the lower. | I15: N/A - For purchase
A16: LVR: | C16: LVR based on loan amount | G16: Yes- Addition Income Addendum to be completed | H16: Yes
A17: DSCR | C17: Debt Service ratio as per outcome of Servicing Calculator. **Min 1.25 times for both Full Doc and Alt doc loans. | G17: No | H17: No- Unable to progress (Decline)
A18: Is property being rented Residential or commercial | C18: If commercial and an executed lease not in existence assessment to include ability to meet loan commitments from existing liquidity of fund during vacancy. Vacancy period to be understood from valuation commentary.
A19: Has application Fee be update | C19: Refer rate card for application Fees
A20: Valuation Reviewed. | C20: Valuation reviewed and acceptable. Refer separate valuation review checklist. Please comment on industry that the tenant is involved in.
A21: Fraud Check on Directors/Members/Gtors and clear | C21: Is the outcome of the Equifax Fraud check in NextGen Clear? If a match, to be referred to Senior Manager to investigate the match
A22: PEP & Sanctions checked on Directors/Members/Gtors and clear: | C22: Is the director/s confirmed as being on the PEP or Sanctions register (not a potential match). If a match refer to dedicated team member for enhanced search.
A23: ID Document is clear and valid | C23: Have the correct, clear identification documents and Customer Identification form been completed correctly, signed?
A24: Company & Trust Loans - Are all members directors of the SMSF Trust | C24: All SMSF members must be directors of the Corporate Trustee of the Superannuation Trust .Has the correct information and documentation been collected to verify the customer to ensure we meet our AML obligations including the verification of identity of beneficial owners.
A25: Is the Trustee for both the Superannuation Trust and Bare ( Property Holding Trusts) corporate entities. | C25: If either of the Trustees of the SMSF Trust or Bare Trust are individuals we are unable to progress on this structure.
A26: Does the SMSF have minimum $200,000 in assets | C26: This is a minimum requirement, Assets less than $200,000 are to be referred.Evidenced in Super statements
A27: Directors/Members Guarantee | C27: All members must be a director of the SMSF and a guarantee be taken as part of security?
A28: Guarantors/Sponsors Statement of position. Is each member in a solvent financial position? | C28: Summary of assets and liabilities of . State main assets (ie home, car, etc) Excess assets over liabilities. State how applicant could meet a call of the guarantee.
A29: Is additional supporting income from an individual member required. | C29: When required the individual member section of the calculator to be completed. An acknowledgment from the member that personal financial advice has been recieced and discussed with their advisor.
A30: Equifax /commercial search. | C30: Does any member have adverse RHI data. Where there is an adverse listing what is the reason and why is it accepted. Is the information on the credit file consistent with the information provided in the customer's application form e.g. in relation to liabilities.
A31: Do all members have a clear credit report. | C31: Comment on the credit bureau file. Where there is an adverse listing what is the reason and why is it accepted. If there are numerous inquiries and the customer has stated no liabilities - what investigations were done and what was the outcome. Is the information on the credit file consistent with the information provided in the customer's application form e.g. in relation to liabilities.
A32: Does the SMSF service from historical known income streams | C32: Summary about the applicant, job, how long employed, income and what documents were used to verify that income and employment. Is income reasonable for the borrower's employment and age. If self employed what does the applicants industry do.
A33: Refinance- Do we hold refinance statements | C33: Refinance: Comment on conduct of any loans that are being refinanced and where adverse conduct exists why and mitigation.
A34: Refinance- Do we hold copy of the LRBA loan agreement being refinanced. | C34: Copy of loan agreement from outgoing lender to be obtained to allow Galilee to review.
A36: ABN Search- PAYG | C36: Confirm employer ABN if applicable
A37: ABN Search- Self Employed Applicants | C37: When relying on additional income refer to standard CRE origination standard
A38: Is this a joint approval | C38: " This file is jointly approved "

Sheet Loan Summary (hidden)
A1: Purpose
A3: Income Summary

Sheet Conditions (hidden)

Sheet Workings (hidden)
A1: Funds To Complete
A3: Purchase
A4: GST ( If applicable)
A5: Stamp Duty
A6: Fees
A7: Total
A8: Less Deposit
A9: Loan Required
